Cogmind - Beta 10.1 *** ADVENTURER MODE // 2020.11.19 @ 20:59:14 Player: Ms Vella Result: Destroyed by S-27 Virus with Autogun Performance ------------- Evolutions (3) 1500 Regions Visited (9) 1800 Robots Destroyed (178) 890 Value Destroyed (5831) 5831 Prototype IDs (44) 880 Alien Tech Used (0) 0 Bonus (1236) 1236 TOTAL SCORE: 12137 Bonus ------- High Alert Combat Kills 436 Follower Combat Kills 279 Entered Garrisons 200 Used RIF Installer 500 Aligned with FarCom 300 Friendly Fire -479 Cogmind --------- Core Integrity 0/700 Matter 217/300 Energy 210/210 System Corruption 19% Temperature Cool (0) Movement Walking (180) Ox2 Location -7/Factory Parts ------- > --- POWER (2) -------- Light Nuclear Core Micro Nuclear Core > --- PROPULSION (4) --- Light Treads Aluminum Leg Aluminum Leg Advanced Myomer Leg > --- UTILITY (5) ------ High-capacity Storage Unit High-capacity Storage Unit High-capacity Storage Unit Relay Coupler [NC] (29) > --- WEAPON (2) ------- Precision Shock Rifle Remote Datajack > --- INVENTORY (28) --- Light Treads High-capacity Storage Unit High-capacity Storage Unit Gravity Neutralizing Apparatus Improved Signal Interpreter Reactive Plating 8R-AWN's Armor/EX Shock Absorption System Hacking Suite Relay Coupler [Sentry] (28) Relay Coupler [Sentry] (23) Relay Coupler [Hunter] (22) Relay Coupler [Hunter] (18) Relay Coupler [Hunter] (17) AS-neutralizer No. 17b Arc Projector Enhanced Autogun Advanced Assault Cannon Gauss Cannon Rocket Array Rocket Array Field Lobotomy Kit Peak State ------------ > --- POWER ------------ Improved Deuterium Engine Light Angular Momentum Engine > --- PROPULSION ------- Improved Titanium Leg Improved Titanium Leg Improved Titanium Leg Advanced Myomer Leg > --- UTILITY ---------- Large Storage Unit High-capacity Storage Unit High-capacity Storage Unit High-capacity Storage Unit Relay Coupler [Sentry] > --- WEAPON ----------- Plasma Cannon Remote Datajack > --- INVENTORY -------- Large Storage Unit High-capacity Storage Unit Compact Battery Gravity Neutralizing Apparatus Improved Signal Interpreter Improved Targeting Computer Improved Medium Armor Plating Reactive Plating 8R-AWN's Armor/EX Shock Absorption System Hacking Suite Relay Coupler [NC] Relay Coupler [NC] Relay Coupler [Grunt] Relay Coupler [Grunt] Relay Coupler [Sentry] Relay Coupler [Sentry] Relay Coupler [Hunter] Relay Coupler [Hunter] Relay Coupler [Hunter] Relay Coupler [Hunter] AS-neutralizer No. 17b Lightning Gun Arc Projector Heavy Assault Rifle Heavy Assault Rifle Enhanced Autogun Enhanced Autogun Rocket Launcher Field Lobotomy Kit [Rating: 57] Favorites ----------- Power Ion Engine Engine Ion Engine Power Core Light Nuclear Core Propulsion Aluminum Leg Treads Light Treads Leg Aluminum Leg Utility High-capacity Storage Unit Device Gravity Neutralizing Apparatus Storage High-capacity Storage Unit Processor Core Analyzer Hackware Relay Coupler [Sentry] Protection Hardened Medium Armor Plating Weapon Shotgun Energy Gun Lightning Gun Energy Cannon Improved EM Pulse Cannon Ballistic Gun Shotgun Ballistic Cannon Advanced Assault Cannon Launcher Rocket Launcher Special Weapon Remote Datajack Build | -11 -10 -10 -9 -9 -9 -8 -8 -8 -7 ------- Run | Scr Mat Min Mat Min Exi Min Mat Gar Fac Slots Evolved 6 | . . . 2 . . . 2 . 2 Power 1 | . . . . . . . . . 1 Propulsion 2 | . . . . . . . 1 . 1 Utility 3 | . . . 2 . . . 1 . . Weapon . | . . . . . . . . . . Parts Attached 160 | 2 9 3 10 . 19 5 14 23 75 Power 22 | . 1 1 2 . 2 . 1 1 14 Engine 14 | . 1 1 2 . 2 . . . 8 Core 8 | . . . . . . . 1 1 6 Reactor . | . . . . . . . . . . Propulsion 54 | 2 . 2 4 . 7 . 4 8 27 Treads 10 | 2 . . . . 5 . . . 3 Leg 44 | . . 2 4 . 2 . 4 8 24 Wheel . | . . . . . . . . . . Hover . | . . . . . . . . . . Flight . | . . . . . . . . . . Utility 32 | . 4 . 2 . 6 2 6 6 6 Device 2 | . . . . . . . 2 . . Storage 11 | . 4 . 1 . 3 . . 3 . Processor 1 | . . . . . . . 1 . . Hackware 5 | . . . . . . . . . 5 Protection 13 | . . . 1 . 3 2 3 3 1 Artifact . | . . . . . . . . . . Weapon 52 | . 4 . 2 . 4 3 3 8 28 Energy Gun 6 | . . . . . . . . . 6 Energy Cannon 4 | . . . . . . . . 1 3 Ballistic Gun 26 | . 4 . 2 . 3 2 2 7 6 Ballistic Cannon 5 | . . . . . . . 1 . 4 Launcher 5 | . . . . . 1 1 . . 3 Special Weapon 6 | . . . . . . . . . 6 Impact Weapon . | . . . . . . . . . . Slashing Weapon . | . . . . . . . . . . Piercing Weapon . | . . . . . . . . . . Special Melee Weapon . | . . . . . . . . . . Unidentified Prototypes 9 | . . . . . 1 . 4 1 3 Parts Lost 55 | . 1 2 3 . 4 4 2 10 29 Power 13 | . . . 1 . 1 . 1 . 10 Propulsion 18 | . . 2 1 . 2 . . 3 10 Utility 6 | . . . . . 1 2 1 2 . Weapon 18 | . 1 . 1 . . 2 . 5 9 Highest Loss Streak 7 | . 1 2 1 . 3 2 2 5 7 Average Slot Usage (%) 95 | . 96 98 97 100 99 99 94 96 89 Engine 9 | . 14 14 10 11 11 11 7 . 8 Core 1 | . . . . . . . 1 9 2 Treads 5 | . 28 14 . . 8 . . . . Leg 19 | . . 11 21 22 13 22 27 26 25 Storage 29 | . 24 28 33 33 33 33 27 31 27 Hackware 1 | . . . . . . . . . 6 Protection 5 | . . . 9 11 10 10 12 6 2 Ballistic Gun 16 | . 24 28 21 22 21 21 15 15 5 Naked Turns . | . . . . . . . . . . Heaviest Build 144 | 13 43 43 67 67 118 117 116 142 144 Greatest Support 90 | 3 40 40 20 20 40 40 60 45 90 Greatest Overweight (x) 14 | 4 1 14 6 3 5 2 2 5 3 Average Overweight (x) 1 | 4 . 1 2 3 2 2 1 2 1 Largest Inventory Capacity 42 | 6 16 16 22 22 28 28 28 42 34 Average Capacity 25 | 6 12 16 22 22 25 28 28 31 31 Most Carried 34 | 6 16 16 22 22 28 27 28 34 34 Average Carried 24 | 3 11 15 21 22 24 24 27 29 30 Final Capacity 34 | 6 16 16 22 22 28 28 28 34 28 Final Carried 34 | 2 16 16 22 22 27 24 27 34 23 Class Distribution -------------------- 65% | Hauler-Mutant 17% | Mutant 15% | Bothacker-Mutant Dominant Class ---------------- Mutant | -10/Materials Mutant | -10/Mines Hauler-Mutant | -9/Materials Hauler-Mutant | -9/Mines Hauler-Mutant | -9/Exiles Hauler-Mutant | -8/Mines Hauler-Mutant | -8/Materials Hauler-Mutant | -8/Garrison Bothacker-Mutant | -7/Factory Resources | -11 -10 -10 -9 -9 -9 -8 -8 -8 -7 ----------- Run | Scr Mat Min Mat Min Exi Min Mat Gar Fac Matter Collected 4681 | 187 218 173 424 135 422 205 295 933 1689 Remotely . | . . . . . . . . . . Salvage Created 5832 | . 294 315 929 34 486 194 163 1222 2195 Parts 365 | . 35 19 75 2 22 14 12 61 125 Haulers Intercepted 1 | . . . 1 . . . . . . Recyclers Shooed 3 | . . . 1 . . . . . 2 Parts Field Recycled . | . . . . . . . . . . Retrieved Matter . | . . . . . . . . . . Parts Self-Destructed . | . . . . . . . . . . Prevented . | . . . . . . . . . . Kills | -11 -10 -10 -9 -9 -9 -8 -8 -8 -7 ------- Run | Scr Mat Min Mat Min Exi Min Mat Gar Fac Combat Hostiles Destroyed 149 | . 15 13 24 1 6 6 6 32 46 Melee 1 | . . . . . . . . . 1 Guns 108 | . 15 13 24 1 2 3 3 25 22 Cannons 22 | . . . . . . . 3 7 12 AOE 17 | . . . . . 4 3 . . 10 Classes Destroyed 17 | . 3 1 6 . 2 . 1 1 3 Worker 5 | . . . 4 . . . . . 1 Builder 6 | . . . 2 . . . . . 4 Tunneler 1 | . . . 1 . . . . . . Hauler 1 | . . . 1 . . . . . . Recycler 5 | . . . 1 . . . . . 4 Turret 1 | . . . . . 1 . . . . Watcher 2 | . 1 . . . . . . . 1 Swarmer 58 | . 12 5 10 . . 3 3 10 15 Grunt 44 | . 3 6 8 1 . 3 1 9 13 Brawler 5 | . . . . . . . . 4 1 Duelist 2 | . . . . . . . . . 2 Protector 1 | . . . . . . . . . 1 Sentry 19 | . . . 6 . . . 1 7 5 Hunter 4 | . . . . . . . 1 2 1 Programmer 8 | . . . . . . . . . 8 Zionite 6 | . . . . . 6 . . . . Assembled 9 | . . 2 . . 7 . . . . Best Kill Streak 6 | . 6 3 6 1 4 3 5 5 6 Combat Bots Only 6 | . 6 3 4 1 4 3 5 5 4 Max Kills in Single Turn 4 | . 2 2 2 1 2 3 1 2 4 Gunslinging 1 | . 1 1 1 . . . . 1 1 Exploded 3 | . . . . . 2 3 . . 3 Melee 1 | . . . . . . . . . 1 Uniques/NPCs Destroyed 1 | . . . . . 1 . . . . 8R-AWN (-9/Exiles) Combat | -11 -10 -10 -9 -9 -9 -8 -8 -8 -7 -------- Run | Scr Mat Min Mat Min Exi Min Mat Gar Fac Damage Taken 10285 | . 386 265 893 . 1254 215 784 1770 4718 Core 1290 | . 57 24 127 . 16 . 87 275 704 Absorbed by Shields . | . . . . . . . . . . Core Remaining (%) 66 | 100 . 67 . . . 64 . 34 . Volleys Fired 548 | . 25 27 50 1 55 8 25 115 242 Largest 2 | . 2 2 2 2 2 2 2 2 2 Hottest 117 | . 60 46 46 46 53 53 62 99 117 Shots Fired 910 | . 49 54 99 2 105 15 50 211 325 Gun 715 | . 49 54 99 2 100 14 40 169 188 Cannon 142 | . . . . . . . 10 42 90 Launcher 14 | . . . . . 5 1 . . 8 Special 39 | . . . . . . . . . 39 Kinetic 730 | . 37 54 99 2 100 14 50 202 172 Thermal 54 | . . . . . . . . 9 45 Explosive 14 | . . . . . 5 1 . . 8 Electromagnetic 73 | . 12 . . . . . . . 61 Robot Hit Streak 40 | . 7 9 15 8 30 5 34 40 20 Robot Miss Streak 7 | . 1 4 5 . 2 2 2 3 7 Penetration Max 2 | . . . . . . 2 . . . Secondary Targets 19 | . 4 4 6 . . . 1 2 2 Max Gunslinging Chain 1 | . 1 1 1 . . . 1 1 1 Shots Hit Robots 702 | . 36 46 76 2 90 8 45 142 257 Core Hits 337 | . 20 24 55 1 37 9 15 63 113 Critical Hits 25 | . 1 1 1 . 8 4 1 6 3 Critical Kills 7 | . . . 1 . 4 2 . . . Critical Parts Destroyed 15 | . 1 1 . . 4 2 1 4 2 Melee Attacks . | . . . . . . . . . . Impact . | . . . . . . . . . . Slashing . | . . . . . . . . . . Piercing . | . . . . . . . . . . Sneak Attacks . | . . . . . . . . . . Combat Hostiles . | . . . . . . . . . . Follow-up Attacks . | . . . . . . . . . . Damage Inflicted 13683 | . 433 633 1284 41 1767 332 653 2388 6152 Guns 8718 | . 433 633 1228 41 1222 169 536 1979 2477 Cannons 2362 | . . . . . . . 115 409 1838 Explosions 2524 | . . . 56 . 545 160 . . 1763 Melee . | . . . . . . . . . . Ramming 79 | . . . . . . 3 2 . 74 Kinetic 9003 | . 296 633 1228 41 1222 169 651 2298 2465 Thermal 2023 | . . . . . . . . 90 1933 Explosive 1553 | . . . . . 545 160 . . 848 Electromagnetic 1025 | . 137 . 56 . . . . . 832 Impact . | . . . . . . . . . . Slashing . | . . . . . . . . . . Piercing . | . . . . . . . . . . Highest Corruption 19 | . . . . . . . . . 19 Average Corruption 11 | . . . . . . . . . 11 Corruption Purged . | . . . . . . . . . . Effects 182 | . . . . . . . . . 182 Message Errors 29 | . . . . . . . . . 29 Matter Fused 41 | . . . . . . . . . 41 Heat Flow Errors 9 | . . . . . . . . . 9 Energy Discharges 15 | . . . . . . . . . 15 Parts Rejected 4 | . . . . . . . . . 4 Data Loss (minor) 14 | . . . . . . . . . 14 Data Loss (major) 2 | . . . . . . . . . 2 Misfires 8 | . . . . . . . . . 8 Alerts 3 | . . . . . . . . . 3 Misdirections 14 | . . . . . . . . . 14 Targeting Errors 37 | . . . . . . . . . 37 Weapon Failures 6 | . . . . . . . . . 6 Overload Shots . | . . . . . . . . . . Overflow Damage 269 | . . . . . 25 . . 21 223 Projectiles 32 | . . . . . . . . 21 11 Explosions 207 | . . . . . 25 . . . 182 Melee 30 | . . . . . . . . . 30 Knockbacks 4 | . . . . . . . . 1 3 Impact 2 | . . . . . . . . . 2 Kinetic 2 | . . . . . . . . 1 1 Secondary . | . . . . . . . . . . Self-Inflicted Damage 46 | . . . . . . 1 . . 45 Shots 2 | . . . . . . . . . 2 Rammed 3 | . . . . . . 2 . . 1 Targets Rammed 8 | . . . . . . 2 1 . 5 Kicked 5 | . . . . . . . 1 . 4 Crushed . | . . . . . . . . . . Highest Temperature 428 | . 12 11 21 . 21 50 159 428 393 Average Temperature 84 | . 5 5 5 . 7 26 84 90 96 Received Heat Transfer 2946 | . 93 111 339 . . 90 243 738 1332 Effects 8 | . . . . . . . . 4 4 Shutdowns 3 | . . . . . . . . 1 2 Energy Bleed 3 | . . . . . . . . 2 1 Matter Decay 1 | . . . . . . . . . 1 Damage (minor) 1 | . . . . . . . . 1 . Siege Activations . | . . . . . . . . . . Robots Corrupted 1 | . . . . . . . . . 1 Combat Hostiles 1 | . . . . . . . . . 1 Parts Fried 2 | . . . . . . . . . 2 Impact Corruptions 2 | . . . . . . . . . 2 Robots Melted . | . . . . . . . . . . Combat Hostiles . | . . . . . . . . . . Parts Melted 2 | . . . . . . . . . 2 Heat Transferred 2683 | . . . . . . . . 148 2535 Parts Sabotaged . | . . . . . . . . . . Parts Stolen . | . . . . . . . . . . Parts Stripped . | . . . . . . . . . . Power Chain Reactions 6 | . . . . . . . . . 6 Missiles Intercepted . | . . . . . . . . . . Alert | -11 -10 -10 -9 -9 -9 -8 -8 -8 -7 ------- Run | Scr Mat Min Mat Min Exi Min Mat Gar Fac Peak Influence 1097 | . 242 130 328 148 . 120 110 1097 552 Initial 498 | . . 5 16 69 . . . 62 498 Average 244 | . 73 81 155 69 . 56 35 724 271 Maximum Alert Level 3 | . 1 . 1 . . . . 3 2 Low Security (%) 56 | 100 92 100 67 100 . 100 100 7 29 Level 1 22 | . 7 . 32 . . . . 8 45 Level 2 12 | . . . . . . . . 28 25 Level 3 7 | . . . . . . . . 55 . Level 4 . | . . . . . . . . . . Level 5 . | . . . . . . . . . . High Security . | . . . . . . . . . . Max Security . | . . . . . . . . . . Squads Dispatched 25 | . 1 . 4 . . . 1 . 19 Investigation 6 | . 1 . . . . . 1 . 4 Extermination 7 | . . . . . . . . . 7 Reinforcement 9 | . . . 4 . . . . . 5 Assault 1 | . . . . . . . . . 1 Garrison 2 | . . . . . . . . . 2 Intercept . | . . . . . . . . . . Construction Impeded 1 | . . . . . . . . . 1 Haulers Reinforced . | . . . . . . . . . . Stealth | -11 -10 -10 -9 -9 -9 -8 -8 -8 -7 --------- Run | Scr Mat Min Mat Min Exi Min Mat Gar Fac Distress Signals 10 | . 4 . 2 . . . 1 . 3 Communications Jammed . | . . . . . . . . . . Distress Signals . | . . . . . . . . . . Times Spotted 275 | . 26 15 44 4 34 6 17 38 91 Peak Tracking Total 7 | . 7 3 6 4 7 3 7 5 7 Tactical Retreats 29 | . . . . . 9 . 4 6 10 Traps | -11 -10 -10 -9 -9 -9 -8 -8 -8 -7 ------- Run | Scr Mat Min Mat Min Exi Min Mat Gar Fac Traps Triggered 20 | . 1 . 1 . . . 3 9 6 Indirectly 1 | . . . 1 . . . . . . Trap Hack Attempts . | . . . . . . . . . . Triggered . | . . . . . . . . . . Disarmed . | . . . . . . . . . . Reprogrammed . | . . . . . . . . . . Reused . | . . . . . . . . . . Traps Extracted . | . . . . . . . . . . Installed . | . . . . . . . . . . Triggered . | . . . . . . . . . . Machines | -11 -10 -10 -9 -9 -9 -8 -8 -8 -7 ---------- Run | Scr Mat Min Mat Min Exi Min Mat Gar Fac Machines Disabled 24 | . 1 . 2 . 9 1 . 4 7 Max in Single Turn 2 | . 1 . 2 . 2 1 . 1 2 Garrison Access 1 | . . . . . . . . . 1 Garrison Relay 4 | . . . . . . . . 4 . Machines Sabotaged . | . . . . . . . . . . Garrisons Compromised . | . . . . . . . . . . Overloaded Fab Kills . | . . . . . . . . . . Fab Network Shutdowns . | . . . . . . . . . . Hacking | -11 -10 -10 -9 -9 -9 -8 -8 -8 -7 --------- Run | Scr Mat Min Mat Min Exi Min Mat Gar Fac Machines Accessed 36 | . 8 . 9 1 2 . 3 . 13 Terminals 24 | . 8 . 6 1 . . 2 . 7 Fabricators 1 | . . . . . . . . . 1 Repair Stations 3 | . . . 1 . . . . . 2 Recycling Units . | . . . . . . . . . . Scanalyzers 3 | . . . 2 . . . . . 1 Garrison Access 3 | . . . . . . . 1 . 2 Total Hacks 125 | . 43 . 29 3 5 . 4 . 41 Successful 90 | . 29 . 24 2 5 . 1 . 29 Failed 35 | . 14 . 5 1 . . 3 . 12 Catastrophic 3 | . . . 1 . . . 1 . 1 Database Lockouts . | . . . . . . . . . . Manual 72 | . 36 . 14 2 1 . 1 . 18 Terminals 85 | . 43 . 17 3 . . 3 . 19 Fabricators 3 | . . . . . . . . . 3 Repair Stations 10 | . . . 2 . . . . . 8 Recycling Units . | . . . . . . . . . . Scanalyzers 17 | . . . 10 . . . . . 7 Garrison Access 5 | . . . . . . . 1 . 4 Terminal Hacks 46 | . 26 . 9 2 5 . . . 4 Record 4 | . . . . . 4 . . . . Part Schematic 1 | . . . . . . . . . 1 Prototype ID Bank 25 | . 21 . 3 . . . . . 1 Branch Access Points 2 | . . . 1 . . . . . 1 Emergency Access Points 1 | . . . 1 . . . . . . Terminal Index 4 | . 1 . 2 . . . . . 1 Repair Station Index 1 | . 1 . . . . . . . . Recycling Unit Index 1 | . 1 . . . . . . . . Scanalyzer Index 1 | . 1 . . . . . . . . Hauler Manifests 2 | . 1 . 1 . . . . . . Zone Layout 3 | . . . 1 2 . . . . . EX-Prototype ID Bank 1 | . . . . . 1 . . . . Fabricator Hacks 2 | . . . . . . . . . 2 Load Schematic 1 | . . . . . . . . . 1 Build 1 | . . . . . . . . . 1 Repair Station Hacks 10 | . . . 2 . . . . . 8 Scan Component 5 | . . . 1 . . . . . 4 Repair 5 | . . . 1 . . . . . 4 Recycling Unit Hacks . | . . . . . . . . . . Scanalyzer 17 | . . . 10 . . . . . 7 Insert Component 8 | . . . 5 . . . . . 3 Analyze 9 | . . . 5 . . . . . 4 Garrison Access Hacks 1 | . . . . . . . 1 . . Unlock Access 1 | . . . . . . . 1 . . Unauthorized Hacks 14 | . 3 . 3 . . . . . 8 Terminals 10 | . 3 . 3 . . . . . 4 Botnet 10 | . 3 . 3 . . . . . 4 Fabricators . | . . . . . . . . . . Repair Stations . | . . . . . . . . . . Recycling Units . | . . . . . . . . . . Scanalyzers . | . . . . . . . . . . Garrison Access 4 | . . . . . . . . . 4 Broadcast 2 | . . . . . . . . . 2 Reprogram 2 | . . . . . . . . . 2 Data Cores Recovered . | . . . . . . . . . . Used . | . . . . . . . . . . Hacking Detections 29 | . 8 . 8 1 . . 2 . 10 Full Trace Events 6 | . 2 . . . . . . . 4 Feedback Events 1 | . . . . . . . . . 1 Corruption 1 | . . . . . . . . . 1 Feedback Blocked . | . . . . . . . . . . Robot Schematics Acquired . | . . . . . . . . . . Robots Built . | . . . . . . . . . . Matter . | . . . . . . . . . . Time . | . . . . . . . . . . Total Robot Build Rating . | . . . . . . . . . . Part Schematics Acquired 8 | . . . 5 . . . . . 3 Parts Built 1 | . . . . . . . . . 1 Matter 168 | . . . . . . . . . 168 Time 84 | . . . . . . . . . 84 Total Part Build Rating 4 | . . . . . . . . . 4 Parts Repaired 5 | . . . 1 . . . . . 4 Time 277 | . . . 32 . . . . . 245 Parts Recycled . | . . . . . . . . . . Recycled Matter . | . . . . . . . . . . Retrieved Matter . | . . . . . . . . . . Retrieved Components . | . . . . . . . . . . Parts Scanalyzed 8 | . . . 5 . . . . . 3 Part Schematics Acquired 7 | . . . 5 . . . . . 2 Parts Damaged 1 | . . . 1 . . . . . . Bothacking | -11 -10 -10 -9 -9 -9 -8 -8 -8 -7 ------------ Run | Scr Mat Min Mat Min Exi Min Mat Gar Fac Used RIF Installer 1 | . . . . . . . . 1 . Robots Hacked 21 | . . . . . . . . . 21 Non-combat 12 | . . . . . . . . . 12 Combat 9 | . . . . . . . . . 9 Robot Hacks Applied 26 | . . . . . . . . . 26 parse_system 4 | . . . . . . . . . 4 no_distress 2 | . . . . . . . . . 2 start_evac 1 | . . . . . . . . . 1 find_chute 1 | . . . . . . . . . 1 ignore_repairs 1 | . . . . . . . . . 1 map_walls 3 | . . . . . . . . . 3 find_recycling 1 | . . . . . . . . . 1 check_alert 1 | . . . . . . . . . 1 scatter_targeting 1 | . . . . . . . . . 1 overload_power 2 | . . . . . . . . . 2 go_dormant 1 | . . . . . . . . . 1 overwrite_iff 1 | . . . . . . . . . 1 formatsys_low 1 | . . . . . . . . . 1 formatsys_high 6 | . . . . . . . . . 6 Relay Couplers Released 17 | . . . . . . . . 15 2 Machine Destruction 17 | . . . . . . . . 15 2 Attached 5 | . . . . . . . . . 5 Robots Rewired . | . . . . . . . . . . Allies Hacked . | . . . . . . . . . . Hacks Repelled . | . . . . . . . . . . Allies | -11 -10 -10 -9 -9 -9 -8 -8 -8 -7 -------- Run | Scr Mat Min Mat Min Exi Min Mat Gar Fac Total Allies 15 | . . 1 . 3 . . . . 11 Largest Group 3 | . . 1 1 3 2 . . . 2 Highest-Rated Group 40 | . . 31 31 40 24 . . . 33 Highest-Rated Ally 32 | . . 31 31 16 16 . . . 32 Total Orders . | . . . . . . . . . . Ally Attacks 101 | . . 11 7 25 6 . . . 52 Total Damage 1167 | . . 188 85 268 63 . . . 563 Kills 15 | . . 3 1 6 . . . . 5 Allies Corrupted . | . . . . . . . . . . Allies Melted . | . . . . . . . . . . Intel | -11 -10 -10 -9 -9 -9 -8 -8 -8 -7 ------- Run | Scr Mat Min Mat Min Exi Min Mat Gar Fac Robot Analysis Total . | . . . . . . . . . . Derelict Logs Recovered 3 | . . 2 . 1 . . . . . Drone Launches . | . . . . . . . . . . Drone Recoveries . | . . . . . . . . . . Exploration | -11 -10 -10 -9 -9 -9 -8 -8 -8 -7 ------------- Run | Scr Mat Min Mat Min Exi Min Mat Gar Fac Turns Passed 15306 | 9 1570 1031 1863 653 2851 558 679 1777 4315 Spaces Moved 6898 | 3 828 480 789 296 1289 248 331 705 1929 Core 6 | 3 . 3 . . . . . . . Treads 1578 | . 828 252 . . 498 . . . . Legs 5314 | . . 225 789 296 791 248 331 705 1929 Wheels . | . . . . . . . . . . Hover . | . . . . . . . . . . Flight . | . . . . . . . . . . Fastest Speed 152 | 250 160 180 180 210 180 200 170 180 152 Average Speed 186 | 250 170 185 206 210 205 200 172 198 166 Slowest Speed 750 | 250 180 750 300 210 290 200 200 270 210 Overloaded Moves . | . . . . . . . . . . Propulsion Burnouts . | . . . . . . . . . . Robots Hopped . | . . . . . . . . . . Cave-ins Triggered . | . . . . . . . . . . Exploration Rate (%) 61 | 2 97 96 71 52 91 54 31 75 48 Regions Visited 9 Branch Regions 4 Pre-discovered Areas 2 | . . . . 1 1 . . . . Known Exits Taken 2 | . . . 1 . . . 1 . . Unknown Exits Taken 6 | 1 1 1 . 1 1 1 . . . Scrap Searched 3 | . . 2 . . . 1 . . . Spaces Dug . | . . . . . . . . . . Terrain Destroyed 89 | . . . . . 30 11 2 . 46 Melee . | . . . . . . . . . . Projectile 14 | . . . . . 8 2 2 . 2 AOE 75 | . . . . . 22 9 . . 44 Terrain Rammed . | . . . . . . . . . . Walls Destroyed . | . . . . . . . . . . Machines Disabled . | . . . . . . . . . . Actions | -11 -10 -10 -9 -9 -9 -8 -8 -8 -7 --------- Run | Scr Mat Min Mat Min Exi Min Mat Gar Fac Total 8504 | 8 937 570 925 326 1395 293 388 912 2750 Wait 683 | . 56 50 51 30 . 30 . 17 449 Move 6889 | 2 827 479 788 295 1288 247 330 704 1929 Hop . | . . . . . . . . . . Pick Up 92 | . 15 5 16 . 16 1 8 12 19 Fast Attach 53 | . 3 2 3 . 4 . 7 4 30 Attach 49 | 2 1 . 3 . 7 4 5 8 19 Detach 9 | . . . . . 1 . 4 1 3 Swap 58 | . 5 1 4 . 8 1 2 11 26 Drop 78 | 4 5 6 10 . 15 . 6 5 27 Fire 548 | . 25 27 50 1 55 8 25 115 242 Melee . | . . . . . . . . . . Ram . | . . . . . . . . . . Kick 8 | . . . . . . 2 1 . 5 Crush . | . . . . . . . . . . Escape Stasis 35 | . . . . . . . . 35 . Rewire 2 | . . . . . 1 . . . 1 Trap . | . . . . . . . . . . Miscellaneous . | . . . . . . . . . . Route ------- -11/Scrapyard -10/Materials (discovered 4 exits: *Mat x3 / [*Min]) -10/Mines (discovered 2 exits: *Mat x2) -9/Materials (discovered 3 exits: *Mat x2 / *Min) -9/Mines (discovered 2 exits: *Mat / *Exi) -9/Exiles (discovered 2 exits: [*Min x2]) -8/Mines -8/Materials (discovered 2 exits: *Fac / Gar) -8/Garrison (discovered 3 exits: *Fac x3) -7/Factory (discovered 3 exits: [*Fac] / *Low x2) History --------- Turn | Location | Event 6 | -11/Scrapyard | Discovered new exit (range 0) 10 | -11/Scrapyard | Entered Materials 103 | -10/Materials | Discovered new exit (range 13) 311 | -10/Materials | Build established: Mutant 595 | -10/Materials | Discovered new exit (range 16) 940 | -10/Materials | Discovered new exit (range 11) 1303 | -10/Materials | Discovered new exit (range 5) 1580 | -10/Materials | Entered Mines 1631 | -10/Mines | Learned Materials stockpile data 1644 | -10/Mines | Discovered new exit (range 6) 1892 | -10/Mines | A weapon hastily lodged in a ceiling crevice suddenly fell to the ground 1910 | -10/Mines | Learned Materials stockpile data 1973 | -10/Mines | Excavation squad dispatched 1973 | -10/Mines | A large section of the Mines collapsed 2076 | -10/Mines | Discovered new exit (range 13) 2437 | -10/Mines | Received a Mining Laser from a helpful Derelict 2611 | -10/Mines | Entered Materials 2611 | -9/Materials | Accompanied by 1 ally 2611 | -9/Materials | Evolved 2 slots: Utility x2 2859 | -9/Materials | Discovered new exit (range 11) 2911 | -9/Materials | Build established: Hauler-Mutant 3241 | -9/Materials | Repaired Shotgun 3276 | -9/Materials | Discovered new exit (range 15) 3985 | -9/Materials | Discovered new exit (range 16) 4200 | -9/Materials | Identified exit to Mines 4474 | -9/Materials | Entered Mines 4493 | -9/Mines | Learned location of Zion (-6) 4949 | -9/Mines | Assisted by bots powering up and referring to "LRC-V3" 5014 | -9/Mines | Discovered new exit (range 10) 5109 | -9/Mines | Deemed a non-threat by the Exiles lab entrance 5109 | -9/Mines | Discovered new exit (range 5) 5127 | -9/Mines | Entered Exiles 5127 | -9/Exiles | Accompanied by 2 allies 5167 | -9/Exiles | Discovered new exit (range 14) 5224 | -9/Exiles | Met 8R-AWN 5253 | -9/Exiles | Met EX-HEX 5333 | -9/Exiles | Met EX-DEC 5538 | -9/Exiles | Discovered new exit (range 10) 5723 | -9/Exiles | Visited The Gauntlet 6591 | -9/Exiles | Met EX-BIN 6625 | -9/Exiles | Aligned with FarCom system 6627 | -9/Exiles | Given EX-Vault access code 6675 | -9/Exiles | Opened EX-Vault 6689 | -9/Exiles | Found Lightpack 2.0 6698 | -9/Exiles | Found Field Lobotomy Kit 6742 | -9/Exiles | Warned to stay clear of 0b10 Research branches 6842 | -9/Exiles | Attacked by the Exiles 6928 | -9/Exiles | Lost 3 parts (1p1n1u) 6930 | -9/Exiles | Destroyed 8R-AWN 6940 | -9/Exiles | Found Prototype Protection 6947 | -9/Exiles | Found Prototype Device 6950 | -9/Exiles | Found Prototype Ballistic Gun 6956 | -9/Exiles | Identified 8R-AWN's Boregun 7978 | -9/Exiles | Left Exiles lab with Field Lobotomy Kit 7978 | -9/Exiles | Entered Mines 8503 | -8/Mines | Discovered new exit (range 14) 8536 | -8/Mines | Entered Materials 8536 | -8/Materials | Evolved 2 slots: Propulsion x1, Utility x1 8541 | -8/Materials | Identified 8R-AWN's Armor/EX 8543 | -8/Materials | Identified AS-neutralizer No. 17b 9146 | -8/Materials | Discovered new exit (range 16) 9213 | -8/Materials | Identified exit to Garrison 9215 | -8/Materials | Entered Garrison 9252 | -8/Garrison | Triggered checkpoint 9283 | -8/Garrison | Garrison Relay disabled 9405 | -8/Garrison | Triggered checkpoint 9469 | -8/Garrison | Triggered checkpoint 9470 | -8/Garrison | Triggered checkpoint 9536 | -8/Garrison | Lost 5 parts (1n1u3w) 9730 | -8/Garrison | Triggered checkpoint 9753 | -8/Garrison | Garrison Relay disabled 9852 | -8/Garrison | Discovered new exit (range 13) 9891 | -8/Garrison | Build established: Scavenger-Mutant 10058 | -8/Garrison | Garrison Relay disabled 10106 | -8/Garrison | Triggered checkpoint 10118 | -8/Garrison | Triggered checkpoint 10156 | -8/Garrison | Triggered checkpoint 10240 | -8/Garrison | Build established: Hauler-Mutant 10292 | -8/Garrison | Discovered new exit (range 14) 10303 | -8/Garrison | Core integrity fell below 50% 10364 | -8/Garrison | Installed Relay Interface Framework 10754 | -8/Garrison | Triggered checkpoint 10827 | -8/Garrison | Garrison Relay disabled 10964 | -8/Garrison | Discovered new exit (range 12) 10992 | -8/Garrison | Entered Factory 10992 | -7/Factory | Evolved 2 slots: Power x1, Propulsion x1 11667 | -7/Factory | Build established: Bothacker-Mutant 12436 | -7/Factory | Garrison activated, responded to threat 12834 | -7/Factory | System corruption reached 10% 12864 | -7/Factory | Lost 3 parts (1p1n1w) 13125 | -7/Factory | Lost 5 parts (1p3n1w) 13129 | -7/Factory | Build established: Hauler-Mutant 13523 | -7/Factory | Discovered new exit (range 13) 13564 | -7/Factory | Repaired Hcp. Storage Unit 13642 | -7/Factory | Repaired Broken Enh. Autogun 13904 | -7/Factory | Garrison activated, responded to threat 14149 | -7/Factory | Core integrity fell below 50% 14205 | -7/Factory | Identified exit to Lower Caves 14435 | -7/Factory | Fabricated Remote Datajack (x1) 14652 | -7/Factory | Repaired Imp. Titanium Leg 14730 | -7/Factory | Build established: Bothacker-Mutant 14752 | -7/Factory | Repaired Adv. Myomer Leg 14886 | -7/Factory | Discovered new exit (range 9) 14948 | -7/Factory | Lost 4 parts (1p1n2w) 15074 | -7/Factory | Found Prototype Launcher 15077 | -7/Factory | Found Prototype Launcher 15125 | -7/Factory | Core integrity fell below 20% 15151 | -7/Factory | Identified Rocket Array (x2) 15173 | -7/Factory | Lost 7 parts (2p3n2w) 15307 | -7/Factory | Destroyed by S-27 Virus with Autogun Last Messages --------------- 15287_ R-06 Scavenger collects Com. Wheel. 15287_ Jacked U-05 Engineer... >>map_walls Extracting local structural data... 15287_ U-05 Engineer lays Concrete. 15288_ U-05 Engineer builds a Wall. 15288_ U-05 Engineer lays Concrete. 15289_ Jacked U-05 Engineer... >>map_walls Extracting local structural data... 15289_ U-05 Engineer lays Concrete. 15291_ U-05 Engineer builds a Wall. 15292_ Acquired 42 matter. 15295_ U-05 Engineer lays Concrete. 15295_ R-06 Scavenger collects Welding Torch. 15296_ Acquired 100 matter. 15301_ Chain reaction triggered in Lgt. Nuclear Core. 15303_ CTTY:4&GJY>WMGWY &GFUNT 15303_ S-27 Virus destroyed. 15305_ System corrupted: Adv. Myomer Leg stumbles. Map ----- +----------------------------------------------------+ | ?????????????????????????????????????????????????? | | ?????????????????????????????????????????????????? | | ?????????????????????????????????????????????????? | | ?????????????????????????????????????????????????? | | ?????????????????????????????????????????????????? | | ?????????????????????????????????????????????????? | | ?????????????????????????????????????????????????? | | ??????????????##?#####???????????????????????????? | | ?????????????????????????????????????????????????? | | ?????????????????????????????????????????????????? | | ?????????????????????????????????????????????????? | | ?????????????????????????????????????????????????? | | ?????????????????????????????????????????????????? | | ??????????????##+###?######??????????????????????? | | ???????????????????#?#???????????????????????????? | | ???????#???????????#?#??########################## | | ???????#???????????#?#??# # | | ???????#???????????#?#??# # | | ???????#???????????#?#??# # | | ???????#???????????#?#??# # ! | | ???????#???????????#?#??# # | | ???????#???????????#?#??# # | | ???????######+###### ##########+####### | | ????????????# #### s s ##???#! ########+######+ | | ????????????# s [;#### u % % ##### | | ??????####### % @uu r u u%u ! [ % | | ?????????? ;;#### %% %! | | ?????############# ; ???# ####### | | ?????????????????############## #### # / | | ?????????????????????#????????# #??# # | | ?????????????????????#????????# #### # | | ????????????????######????????+ ??+ # = | | ????????????????# #????????# #### # | | ????????????????#" #????????# #??# # | | ????#############" #????????# #??############### | | ???? ##" ########## #?###########????? | | ??# """" "" ##T !!#??????### ###??????????????? | | ??# """" """ ##" ![#??????# #??????????????? | | ??# """" F" ##" ######## #??????????????? | | ??# """" """ ##" + ! T +??????????????? | | ??# "" ## # ###### #??????????????? | | ??# """" ####+## #????# #??????????????? | | ??# """" + #????### #####???###??????? | | ??# """" #### #???####+#########????????? | | ??# """" #??# #???# #????????? | | ??# #??# #???# """" """" #????????? | | ??# #??# #???# """" """" #????????? | | #########+######### ##### """" """" #????????? | | # # """" """" #??####### | | # % # #??# ! | +----------------------------------------------------+ Best States ------------- Heat Dissipation 34 Energy Generation 31 Energy Capacity 340 Matter Stores 300 Matter Capacity 300 Sight Range 16 Terrain Scan Density 10 Armor Coverage 300 Resistance: KI 20 Resistance: TH 20 Resistance: EX 20 Resistance: EM 20 Resistance: I 20 Resistance: S 20 Resistance: P 20 Evasion (%) 40 Core Analysis 6 Recoil Reduction 2 Offensive Hacking 10 Relay Coupler Types 59 Relay Coupler Value 2 Item Schematics ----------------- EM Pulse Gun | -9/Materials | Scanalyzed Signal Interpreter | -9/Materials | Scanalyzed Med. Storage Unit | -9/Materials | Scanalyzed Shotgun | -9/Materials | Scanalyzed Hvy. Battle Rifle | -9/Materials | Scanalyzed Lrg. Storage Unit | -7/Factory | Scanalyzed Gravity Neutralizing Apparatus | -7/Factory | Scanalyzed Remote Datajack | -7/Factory | Hacked Robot Schematics ------------------ None Fabricated ------------ Remote Datajack | x1 | -7/Factory Alien Tech Used ----------------- None Achievements -------------- None Challenges ------------ None Game ------ Seed ChromaticSurgeBuckler Manual? 0 Play Time 01:54:36 Cumulative 479.3 hours Start 2020.11.19 @ 18:47:48 End 2020.11.19 @ 20:59:14 Sessions 1 Manual Loads 0 Difficulty Adventurer Special Mode None Game No. 130 Rogue 1 Adventurer 129 Explorer 0 Win Type - Total 3 Types 3/0/0/0/0/0/0/0/0 Lore% 65 Gallery% 73 Achievement% 55 Wizard Run 0 Options --------- ASCII 0 Keyboard 0 Movement Mouse Keybinds 0 Fullscreen 0 Font 12/Smallcaps Map View 83x54 Tactical HUD 1 Map Filters NONE Filters NONE Steam 1 RUN: d96a4cee-ddfe-45c7-b423-25eeff0d97a9